[Event "European Women Rapid-ch 2023"]
[Site "Monaco"]
[Date "2024.01.14"]
[Round "6.8"]
[White "Javakhishvili, Lela"]
[Black "Charkhalashvili, Inga"]
[Result "1/2-1/2"]
[ECO "E07"]
[WhiteElo "2433"]
[BlackElo "2239"]
[Annotator "RC"]
[PlyCount "76"]
[EventDate "2023.12.19"]
[EventType "swiss"]
[EventCountry "MNC"]
[SourceTitle "playchess.com"]
[Source "ChessBase"]
[SourceQuality "1"]
[TimeControl "900+10"]

1. d4 {[%emt 0:00:03]} Nf6 {[%emt 0:00:04]} 2. Nf3 {[%emt 0:00:06]} e6 {[%emt 0:00:04]} 3. c4 {[%emt 0:00:06]} d5 {[%emt 0:00:45]} 4. Nc3 {[%emt 0:00:06]} Be7 {[%emt 0:00:14]} 5. g3 {[%emt 0:00:20]} O-O {[%emt 0:00:10]} 6. Bg2 {[%emt 0:00:05]} c6 {[%emt 0:00:13]} 7. O-O {[%emt 0:00:19]} Nbd7 {[%emt 0:00:35]} 8. Nd2 {[%emt 0:00:19]} b6 {[%emt 0:01:26]} 9. e4 {[%emt 0:00:12]} dxc4 {[%emt 0:00:49]} 10. Nxc4 {[%emt 0:00:11]} Ba6 {[%emt 0:00:16]} 11. Qb3 {[%emt 0:04:55]} b5 {[%emt 0:01:45]} 12. Ne5 {[%emt 0:00:03]} Nxe5 {[%emt 0:01:42]} 13. dxe5 {[%emt 0:00:02]} Nd7 {[%emt 0:00:56]} 14. Rd1 {[%emt 0:00:12]} Qc7 {[%emt 0:00:10]} 15. h4 {[%emt 0:00:42]} Rad8 {[%emt 0:02:44]} 16. Bf4 {[%emt 0:00:23]} Nc5 {[%emt 0:00:04]} 17. Qc2 {[%emt 0:00:14]} b4 {[%emt 0:00:17]} 18. Ne2 {[%emt 0:02:31]} Bd3 {[%emt 0:00:13]} 19. Qd2 {[%emt 0:00:03]} Nxe4 {[%emt 0:01:14]} 20. Qe1 {[%emt 0:01:49]} Bc5 {[%emt 0:02:14]} 21. Rxd3 {[%emt 0:00:02]} Bxf2+ {[%emt 0:00:53]} 22. Qxf2 {[%emt 0:00:02]} Nxf2 {[%emt 0:00:01]} 23. Rxd8 Rxd8 {[%emt 0:00:01]} 24. Kxf2 {[%emt 0:00:04]} c5 {[%emt 0:00:19]} 25. Be4 {[%emt 0:00:52]} c4 {[%emt 0:00:20]} 26. a3 {[%emt 0:00:28]} a5 {[%emt 0:00:02]} 27. axb4 {[%emt 0:00:09]} axb4 {[%emt 0:00:01]} 28. Ra6 {[%emt 0:00:41]} c3 {[%emt 0:00:26]} 29. bxc3 {[%emt 0:00:13]} Qc4 {[%emt 0:00:26]} 30. Bb7 {[%emt 0:02:13]} bxc3 {[%emt 0:00:31]} 31. Rd6 {[%emt 0:01:13]} Rb8 {[%emt 0:00:15]} 32. Bf3 {[%emt 0:00:18]} Rc8 {[%emt 0:00:14]} 33. Bb7 {[%emt 0:00:26]} Rb8 {[%emt 0:00:31]} 34. Bf3 {[%emt 0:00:09]} Qc5+ {[%emt 0:00:14]} 35. Kg2 {[%emt 0:00:04]} Rc8 {[%emt 0:00:06]} 36. Bb7 {[%emt 0:00:15]} Rb8 {[%emt 0:00:29]} 37. Bf3 {[%emt 0:00:04]} Rc8 {[%emt 0:00:20]} 38. Bb7 {[%emt 0:00:24]} Rb8 {[%emt 0:00:13]} 1/2-1/2

[Event "European Women Rapid-ch 2023"]
[Site "Monaco"]
[Date "2024.01.14"]
[Round "6.9"]
[White "Salimova, Nurgyul"]
[Black "Sliwicka, Alicja"]
[Result "1/2-1/2"]
[ECO "B07"]
[WhiteElo "2426"]
[BlackElo "2311"]
[Annotator "RC"]
[PlyCount "160"]
[EventDate "2023.12.19"]
[EventType "swiss"]
[EventCountry "MNC"]
[SourceTitle "playchess.com"]
[Source "ChessBase"]
[SourceQuality "1"]
[TimeControl "900+10"]

1. d4 {[%emt 0:00:01]} Nf6 {[%emt 0:02:00]} 2. Nf3 {[%emt 0:00:01]} g6 {[%emt 0:00:03]} 3. g3 {[%emt 0:00:05]} Bg7 {[%emt 0:00:02]} 4. Bg2 {[%emt 0:00:05]} O-O {[%emt 0:00:03]} 5. O-O {[%emt 0:00:02]} d6 {[%emt 0:00:01]} 6. Nc3 {[%emt 0:00:15]} Nbd7 {[%emt 0:00:18]} 7. e4 {[%emt 0:00:51]} e5 {[%emt 0:00:02]} 8. dxe5 {[%emt 0:00:03]} dxe5 {[%emt 0:00:42]} 9. a4 {[%emt 0:00:09]} c6 {[%emt 0:00:13]} 10. b3 {[%emt 0:00:27]} Qc7 {[%emt 0:00:11]} 11. Ba3 {[%emt 0:00:07]} c5 {[%emt 0:02:57]} 12. Qe2 {[%emt 0:01:02]} b6 {[%emt 0:00:20]} 13. Rfd1 {[%emt 0:00:23]} a6 {[%emt 0:00:41]} 14. Nd2 {[%emt 0:00:15]} Bb7 {[%emt 0:00:26]} 15. Nc4 {[%emt 0:00:11]} Rfd8 {[%emt 0:00:43]} 16. Ne3 {[%emt 0:03:52]} Nf8 {[%emt 0:00:31]} 17. Ncd5 {[%emt 0:00:26]} Nxd5 {[%emt 0:00:51]} 18. exd5 {[%emt 0:00:10]} e4 {[%emt 0:00:31]} 19. Rab1 {[%emt 0:01:11]} f5 {[%emt 0:00:14]} 20. b4 {[%emt 0:00:08]} Rac8 {[%emt 0:01:00]} 21. bxc5 {[%emt 0:00:30]} bxc5 {[%emt 0:00:02]} 22. Qc4 {[%emt 0:01:47]} Rd6 {[%emt 0:02:07]} 23. Bb2 {[%emt 0:02:40]} Bxb2 {[%emt 0:00:45]} 24. Rxb2 {[%emt 0:00:01]} Qf7 {[%emt 0:00:09]} 25. Bf1 {[%emt 0:00:51]} Ba8 {[%emt 0:00:16]} 26. a5 {[%emt 0:00:12]} Nd7 {[%emt 0:00:07]} 27. Qc3 {[%emt 0:00:26]} Qg7 {[%emt 0:00:21]} 28. Qxg7+ {[%emt 0:00:56]} Kxg7 {[%emt 0:00:01]} 29. Nc4 {[%emt 0:00:10]} Rxd5 {[%emt 0:00:10]} 30. Rxd5 {[%emt 0:00:03]} Bxd5 {[%emt 0:00:02]} 31. Ne3 {[%emt 0:00:01]} Be6 {[%emt 0:00:58]} 32. Bxa6 {[%emt 0:00:14]} Ra8 {[%emt 0:00:06]} 33. Bc4 {[%emt 0:00:05]} Kf6 {[%emt 0:00:44]} 34. Rb5 {[%emt 0:01:02]} Ke5 {[%emt 0:00:28]} 35. Bxe6 {[%emt 0:00:59]} Kxe6 {[%emt 0:00:01]} 36. c4 {[%emt 0:00:23]} Kd6 {[%emt 0:00:53]} 37. Kg2 {[%emt 0:00:29]} Ra6 {[%emt 0:01:42]} 38. Nd5 {[%emt 0:00:25]} Ne5 {[%emt 0:00:12]} 39. Rb6+ {[%emt 0:00:27]} Rxb6 {[%emt 0:00:02]} 40. Nxb6 {[%emt 0:00:09]} Kc6 {[%emt 0:00:10]} 41. Kf1 {[%emt 0:00:12]} Kb7 {[%emt 0:00:03]} 42. Ke2 {[%emt 0:00:08]} Ka6 {[%emt 0:00:06]} 43. Na4 {[%emt 0:00:02]} Nd3 {[%emt 0:00:07]} 44. f3 {[%emt 0:00:07]} Kxa5 {[%emt 0:00:10]} 45. fxe4 {[%emt 0:00:11]} Nc1+ {[%emt 0:00:43]} 46. Ke3 {[%emt 0:00:06]} fxe4 {[%emt 0:00:18]} 47. Nxc5 {[%emt 0:00:03]} Kb4 {[%emt 0:00:03]} 48. Nxe4 {[%emt 0:00:07]} Kxc4 {[%emt 0:00:02]} 49. Nf6 {[%emt 0:00:32]} h6 {[%emt 0:00:12]} 50. Ng4 {[%emt 0:00:05]} Kd5 {[%emt 0:00:06]} 51. Nxh6 {[%emt 0:00:11]} Ke5 {[%emt 0:00:00]} 52. h4 {[%emt 0:00:15]} Nb3 {[%emt 0:00:04]} 53. g4 {[%emt 0:00:07]} Nc5 {[%emt 0:00:02]} 54. Nf7+ {[%emt 0:00:07]} Kf6 {[%emt 0:00:04]} 55. Nd6 {[%emt 0:00:08]} Ne6 {[%emt 0:00:11]} 56. Ke4 {[%emt 0:00:06]} Nc5+ {[%emt 0:00:15]} 57. Kd5 {[%emt 0:00:04]} Nd3 {[%emt 0:00:08]} 58. g5+ {[%emt 0:00:18]} Ke7 {[%emt 0:00:20]} 59. Nc8+ {[%emt 0:00:21]} Kf7 {[%emt 0:00:02]} 60. Ke4 {[%emt 0:00:09]} Ne1 {[%emt 0:00:15]} 61. Kf4 {[%emt 0:00:12]} Ng2+ {[%emt 0:00:14]} 62. Kg3 {[%emt 0:00:06]} Ne3 {[%emt 0:00:01]} 63. Kf3 {[%emt 0:00:11]} Nf5 {[%emt 0:00:04]} 64. Kg4 {[%emt 0:00:03]} Ne3+ {[%emt 0:00:01]} 65. Kf4 {[%emt 0:00:08]} Ng2+ {[%emt 0:00:02]} 66. Kg3 {[%emt 0:00:01]} Ne3 {[%emt 0:00:01]} 67. Nd6+ {[%emt 0:00:04]} Ke6 {[%emt 0:00:03]} 68. Ne4 {[%emt 0:00:05]} Kf5 {[%emt 0:00:08]} 69. Kf3 {[%emt 0:00:07]} Nc4 {[%emt 0:00:11]} 70. Ng3+ {[%emt 0:00:10]} Ke5 {[%emt 0:00:04]} 71. Nf1 {[%emt 0:00:09]} Kf5 {[%emt 0:00:16]} 72. Ng3+ {[%emt 0:00:13]} Ke5 {[%emt 0:00:00]} 73. Ne2 {[%emt 0:00:06]} Nd2+ {[%emt 0:00:15]} 74. Kg4 {[%emt 0:00:11]} Nf1 {[%emt 0:00:17]} 75. Kf3 {[%emt 0:00:30]} Nd2+ {[%emt 0:00:04]} 76. Ke3 {[%emt 0:00:14]} Nf1+ {[%emt 0:00:06]} 77. Kf2 {[%emt 0:00:11]} Nd2 {[%emt 0:00:03]} 78. Ng3 {[%emt 0:00:13]} Kf4 {[%emt 0:00:07]} 79. h5 {[%emt 0:00:16]} Kxg5 {[%emt 0:00:06]} 80. hxg6 {[%emt 0:00:02]} Kxg6 {[%emt 0:00:02]} 1/2-1/2

[Event "European Women Rapid-ch 2023"]
[Site "Monaco"]
[Date "2024.01.14"]
[Round "6.10"]
[White "Stefanova, Antoaneta"]
[Black "Navrotescu, Andreea"]
[Result "1-0"]
[ECO "D02"]
[WhiteElo "2431"]
[BlackElo "2222"]
[Annotator "RC"]
[PlyCount "69"]
[EventDate "2023.12.19"]
[EventType "swiss"]
[EventCountry "MNC"]
[SourceTitle "playchess.com"]
[Source "ChessBase"]
[SourceQuality "1"]
[TimeControl "900+10"]

1. d4 {[%emt 0:00:01]} d5 {[%emt 0:00:50]} 2. Bf4 {[%emt 0:00:12]} Nf6 {[%emt 0:00:27]} 3. e3 {[%emt 0:00:01]} c5 {[%emt 0:00:19]} 4. c3 {[%emt 0:00:11]} Nc6 {[%emt 0:00:04]} 5. Nd2 {[%emt 0:00:17]} e6 {[%emt 0:00:44]} 6. Ngf3 {[%emt 0:03:16]} Bd6 {[%emt 0:00:03]} 7. Bg3 {[%emt 0:00:01]} O-O {[%emt 0:00:26]} 8. Bd3 {[%emt 0:00:02]} Qe7 {[%emt 0:00:21]} 9. Ne5 {[%emt 0:00:04]} Qc7 {[%emt 0:00:16]} 10. f4 {[%emt 0:00:29]} c4 {[%emt 0:01:03]} 11. Bc2 {[%emt 0:00:04]} Ne7 {[%emt 0:00:33]} 12. O-O {[%emt 0:01:05]} b5 {[%emt 0:01:51]} 13. Bh4 {[%emt 0:02:21]} Ng6 {[%emt 0:01:08]} 14. Bxf6 {[%emt 0:01:09]} gxf6 {[%emt 0:00:02]} 15. Ng4 {[%emt 0:00:02]} f5 {[%emt 0:00:37]} 16. Nh6+ {[%emt 0:02:43]} Kh8 {[%emt 0:01:26]} 17. Rf3 {[%emt 0:00:10]} f6 {[%emt 0:02:17]} 18. Rh3 {[%emt 0:00:04]} Bd7 {[%emt 0:01:45]} 19. Kh1 {[%emt 0:01:55]} b4 {[%emt 0:00:29]} 20. g4 {[%emt 0:00:44]} fxg4 {[%emt 0:00:05]} 21. Qxg4 {[%emt 0:00:02]} f5 {[%emt 0:02:52]} 22. Qg3 {[%emt 0:00:25]} Be8 {[%emt 0:00:21]} 23. Nf3 {[%emt 0:00:07]} bxc3 {[%emt 0:00:15]} 24. bxc3 {[%emt 0:01:10]} Be7 {[%emt 0:00:14]} 25. Rg1 {[%emt 0:00:36]} Rb8 {[%emt 0:00:12]} 26. Ne5 {[%emt 0:00:04]} Bf6 {[%emt 0:00:09]} 27. Nxg6+ {[%emt 0:01:55]} Bxg6 {[%emt 0:00:01]} 28. Bd1 {[%emt 0:00:05]} Rb1 {[%emt 0:00:22]} 29. Qf2 {[%emt 0:00:06]} Qb7 {[%emt 0:00:18]} 30. Qc2 {[%emt 0:00:27]} Rb2 {[%emt 0:00:14]} 31. Qa4 {[%emt 0:00:02]} Be8 {[%emt 0:00:11]} 32. Qa5 {[%emt 0:00:07]} Rb1 {[%emt 0:00:10]} 33. Rhg3 {[%emt 0:00:07]} Bg6 {[%emt 0:00:03]} 34. Qa4 {[%emt 0:00:07]} Rc1 {[%emt 0:00:15]} 35. Qa3 {[%emt 0:00:05]} 1-0

[Event "European Women Rapid-ch 2023"]
[Site "Monaco"]
[Date "2024.01.14"]
[Round "6.11"]
[White "Vega Gutierrez, Sabrina"]
[Black "Rodriguez Redondo, Adhara"]
[Result "0-1"]
[ECO "C47"]
[WhiteElo "2378"]
[BlackElo "2130"]
[Annotator "RC"]
[PlyCount "82"]
[EventDate "2023.12.19"]
[EventType "swiss"]
[EventCountry "MNC"]
[SourceTitle "playchess.com"]
[Source "ChessBase"]
[SourceQuality "1"]
[TimeControl "900+10"]

1. e4 {[%emt 0:00:02]} e5 {[%emt 0:00:01]} 2. Nf3 {[%emt 0:00:02]} Nc6 {[%emt 0:00:02]} 3. Nc3 {[%emt 0:00:03]} Nf6 {[%emt 0:00:02]} 4. g3 {[%emt 0:00:02]} d5 {[%emt 0:01:34]} 5. exd5 {[%emt 0:00:03]} Nxd5 {[%emt 0:00:02]} 6. Bg2 {[%emt 0:00:02]} Nxc3 {[%emt 0:01:18]} 7. bxc3 {[%emt 0:00:03]} Bd6 {[%emt 0:00:25]} 8. O-O {[%emt 0:00:05]} O-O {[%emt 0:00:02]} 9. d3 {[%emt 0:00:08]} h6 {[%emt 0:00:20]} 10. Rb1 {[%emt 0:00:23]} Rb8 {[%emt 0:01:52]} 11. h3 {[%emt 0:00:31]} Be6 {[%emt 0:00:09]} 12. a4 {[%emt 0:00:06]} Qd7 {[%emt 0:00:17]} 13. Kh2 {[%emt 0:00:03]} Ne7 {[%emt 0:00:51]} 14. Re1 {[%emt 0:00:35]} Ng6 {[%emt 0:01:18]} 15. d4 {[%emt 0:00:59]} exd4 {[%emt 0:00:53]} 16. Nxd4 {[%emt 0:00:10]} Ba2 {[%emt 0:02:00]} 17. Ra1 {[%emt 0:04:50]} Bc4 {[%emt 0:00:31]} 18. Qh5 {[%emt 0:00:01]} Rfe8 {[%emt 0:01:40]} 19. Rxe8+ {[%emt 0:03:22]} Qxe8 {[%emt 0:00:03]} 20. Bd2 {[%emt 0:02:04]} Bf8 {[%emt 0:00:29]} 21. Re1 {[%emt 0:01:14]} Qxa4 {[%emt 0:00:22]} 22. Be4 {[%emt 0:00:05]} Qa6 {[%emt 0:00:10]} 23. Rb1 {[%emt 0:00:17]} c5 {[%emt 0:00:13]} 24. Nf5 {[%emt 0:00:24]} Be2 {[%emt 0:00:10]} 25. Bf3 {[%emt 0:01:02]} Bxf3 {[%emt 0:00:13]} 26. Qxf3 {[%emt 0:00:01]} b5 {[%emt 0:00:31]} 27. h4 {[%emt 0:00:26]} Qb7 {[%emt 0:00:05]} 28. Qe2 {[%emt 0:02:10]} Qd7 {[%emt 0:00:03]} 29. Ne3 {[%emt 0:00:07]} a6 {[%emt 0:00:19]} 30. Ra1 {[%emt 0:00:24]} Qe6 {[%emt 0:00:02]} 31. f4 {[%emt 0:00:19]} Ne7 {[%emt 0:00:13]} 32. Qf3 {[%emt 0:00:03]} Rd8 {[%emt 0:00:11]} 33. Be1 {[%emt 0:00:03]} Nd5 {[%emt 0:00:02]} 34. Ng4 {[%emt 0:00:05]} Qf5 {[%emt 0:00:28]} 35. Rxa6 {[%emt 0:00:19]} Qxc2+ {[%emt 0:00:03]} 36. Kh3 {[%emt 0:00:03]} Qc1 {[%emt 0:00:39]} 37. Qe2 {[%emt 0:00:31]} Nxc3 {[%emt 0:00:16]} 38. Bxc3 {[%emt 0:00:08]} Qxc3 {[%emt 0:00:01]} 39. Qxb5 {[%emt 0:00:02]} Rd3 {[%emt 0:00:04]} 40. Ra8 {[%emt 0:00:22]} Rxg3+ {[%emt 0:00:03]} 41. Kh2 {[%emt 0:00:01]} Rh3+ {[%emt 0:00:10]} 0-1

[Event "European Women Rapid-ch 2023"]
[Site "Monaco"]
[Date "2024.01.14"]
[Round "6.12"]
[White "Schippke, Manon"]
[Black "Kulon, Klaudia"]
[Result "1-0"]
[ECO "C45"]
[WhiteElo "2162"]
[BlackElo "2323"]
[Annotator "RC"]
[PlyCount "119"]
[EventDate "2023.12.19"]
[EventType "swiss"]
[EventCountry "MNC"]
[SourceTitle "playchess.com"]
[Source "ChessBase"]
[SourceQuality "1"]
[TimeControl "900+10"]

1. e4 {[%emt 0:00:48]} e5 {[%emt 0:00:02]} 2. Nf3 {[%emt 0:00:02]} Nc6 {[%emt 0:00:02]} 3. d4 {[%emt 0:00:01]} exd4 {[%emt 0:00:04]} 4. Nxd4 {[%emt 0:00:03]} Nf6 {[%emt 0:00:03]} 5. Nxc6 {[%emt 0:00:01]} bxc6 {[%emt 0:00:03]} 6. e5 {[%emt 0:00:02]} Qe7 {[%emt 0:00:05]} 7. Qe2 {[%emt 0:00:01]} Nd5 {[%emt 0:00:03]} 8. h4 {[%emt 0:00:02]} d6 {[%emt 0:00:47]} 9. c4 {[%emt 0:00:19]} Nb6 {[%emt 0:00:15]} 10. exd6 {[%emt 0:01:18]} cxd6 {[%emt 0:00:18]} 11. Be3 {[%emt 0:00:11]} Be6 {[%emt 0:00:42]} 12. Nd2 {[%emt 0:00:02]} Qf6 {[%emt 0:01:04]} 13. O-O-O {[%emt 0:01:41]} Rb8 {[%emt 0:00:49]} 14. Bg5 {[%emt 0:03:06]} Qf5 {[%emt 0:02:17]} 15. Qe3 {[%emt 0:01:54]} h6 {[%emt 0:01:42]} 16. Bf4 {[%emt 0:01:58]} g5 {[%emt 0:02:11]} 17. hxg5 {[%emt 0:00:17]} Bg7 {[%emt 0:00:02]} 18. Nb3 {[%emt 0:00:57]} hxg5 {[%emt 0:03:47]} 19. Rxh8+ {[%emt 0:00:02]} Bxh8 {[%emt 0:00:01]} 20. Bxd6 {[%emt 0:01:07]} Rd8 {[%emt 0:00:01]} 21. Qf3 {[%emt 0:02:43]} Qxf3 {[%emt 0:00:57]} 22. gxf3 {[%emt 0:00:01]} Bxc4 {[%emt 0:00:54]} 23. Bh3 {[%emt 0:00:41]} Be6 {[%emt 0:00:24]} 24. Bxe6 {[%emt 0:00:09]} fxe6 {[%emt 0:00:01]} 25. Na5 {[%emt 0:00:56]} Kf7 {[%emt 0:01:13]} 26. Kc2 {[%emt 0:00:21]} Nd5 {[%emt 0:00:53]} 27. Nc4 {[%emt 0:00:01]} Kg6 {[%emt 0:00:25]} 28. Bc5 {[%emt 0:00:14]} a6 {[%emt 0:00:02]} 29. b3 {[%emt 0:00:20]} Rd7 {[%emt 0:00:02]} 30. Rh1 {[%emt 0:00:15]} Bg7 {[%emt 0:00:01]} 31. Re1 {[%emt 0:00:20]} Kf5 {[%emt 0:00:32]} 32. Nd6+ {[%emt 0:00:05]} Kf4 {[%emt 0:00:06]} 33. Rxe6 {[%emt 0:00:15]} Kxf3 {[%emt 0:00:04]} 34. Nc4 {[%emt 0:00:12]} Rc7 {[%emt 0:00:31]} 35. Nd2+ {[%emt 0:00:19]} Kg4 {[%emt 0:00:12]} 36. Re4+ {[%emt 0:00:12]} Kf5 {[%emt 0:00:03]} 37. Ra4 {[%emt 0:00:01]} Be5 {[%emt 0:00:28]} 38. Rxa6 {[%emt 0:00:06]} Nf4 {[%emt 0:00:01]} 39. Ra5 {[%emt 0:00:12]} Ke6 {[%emt 0:00:06]} 40. Nf3 {[%emt 0:00:05]} Bf6 {[%emt 0:00:04]} 41. Be3 {[%emt 0:00:08]} Rg7 {[%emt 0:00:05]} 42. Nd4+ {[%emt 0:00:21]} Bxd4 {[%emt 0:00:02]} 43. Bxd4 {[%emt 0:00:01]} Rg6 {[%emt 0:00:03]} 44. Ra8 {[%emt 0:00:22]} Nd5 {[%emt 0:00:09]} 45. a4 {[%emt 0:00:06]} Kd6 {[%emt 0:00:21]} 46. Kd3 {[%emt 0:00:10]} Rh6 {[%emt 0:00:09]} 47. Rg8 {[%emt 0:00:09]} Nf4+ {[%emt 0:00:27]} 48. Kc4 {[%emt 0:00:17]} Ne6 {[%emt 0:00:01]} 49. Be3 {[%emt 0:00:00]} Rh4+ {[%emt 0:00:08]} 50. Kc3 {[%emt 0:00:02]} Rh3 {[%emt 0:00:24]} 51. a5 {[%emt 0:00:03]} Nc7 {[%emt 0:00:04]} 52. Rg6+ {[%emt 0:00:14]} Kd7 {[%emt 0:00:02]} 53. Rxg5 {[%emt 0:00:09]} Kc8 {[%emt 0:00:08]} 54. Rg7 {[%emt 0:00:18]} Rh5 {[%emt 0:00:08]} 55. b4 {[%emt 0:00:24]} Nd5+ {[%emt 0:00:28]} 56. Kb3 {[%emt 0:00:00]} Rh3 {[%emt 0:00:03]} 57. a6 {[%emt 0:00:04]} Rh1 {[%emt 0:00:14]} 58. a7 {[%emt 0:00:17]} Nc7 {[%emt 0:00:22]} 59. Rxc7+ {[%emt 0:00:06]} Kxc7 {[%emt 0:00:02]} 60. a8=Q {[%emt 0:00:02]} 1-0

[Event "European Women Rapid-ch 2023"]
[Site "Monaco"]
[Date "2024.01.14"]
[Round "6.13"]
[White "Rudzinska, Michalina"]
[Black "Unuk, Laura"]
[Result "0-1"]
[ECO "C62"]
[WhiteElo "2241"]
[BlackElo "2346"]
[Annotator "RC"]
[PlyCount "72"]
[EventDate "2023.12.19"]
[EventType "swiss"]
[EventCountry "MNC"]
[SourceTitle "playchess.com"]
[Source "ChessBase"]
[SourceQuality "1"]
[TimeControl "900+10"]

1. e4 {[%emt 0:00:02]} e5 {[%emt 0:00:09]} 2. Nf3 {[%emt 0:00:10]} Nc6 {[%emt 0:00:07]} 3. Bb5 {[%emt 0:00:11]} d6 {[%emt 0:00:10]} 4. d4 {[%emt 0:00:13]} exd4 {[%emt 0:00:10]} 5. Nxd4 {[%emt 0:00:03]} Bd7 {[%emt 0:00:08]} 6. Nc3 {[%emt 0:00:26]} Nxd4 {[%emt 0:02:14]} 7. Bxd7+ {[%emt 0:00:08]} Qxd7 {[%emt 0:00:02]} 8. Qxd4 {[%emt 0:00:04]} Ne7 {[%emt 0:00:19]} 9. Be3 {[%emt 0:01:16]} Nc6 {[%emt 0:00:13]} 10. Qd2 {[%emt 0:00:05]} g6 {[%emt 0:00:43]} 11. Nd5 {[%emt 0:00:50]} O-O-O {[%emt 0:01:21]} 12. Bg5 {[%emt 0:00:48]} Be7 {[%emt 0:00:28]} 13. Nxe7+ {[%emt 0:00:49]} Nxe7 {[%emt 0:00:03]} 14. O-O {[%emt 0:02:30]} Qe6 {[%emt 0:01:10]} 15. Rfe1 {[%emt 0:02:02]} a6 {[%emt 0:02:09]} 16. c4 {[%emt 0:01:19]} f6 {[%emt 0:00:10]} 17. Be3 {[%emt 0:00:04]} g5 {[%emt 0:00:06]} 18. Rac1 {[%emt 0:00:19]} Ng6 {[%emt 0:02:55]} 19. b4 {[%emt 0:00:11]} Rhe8 {[%emt 0:01:43]} 20. b5 {[%emt 0:00:39]} Qxe4 {[%emt 0:00:31]} 21. bxa6 {[%emt 0:00:43]} bxa6 {[%emt 0:00:04]} 22. Bxg5 {[%emt 0:02:00]} Qf5 {[%emt 0:00:54]} 23. Be3 {[%emt 0:01:10]} Ne5 {[%emt 0:00:16]} 24. c5 {[%emt 0:02:26]} Rg8 {[%emt 0:01:13]} 25. Kf1 {[%emt 0:00:33]} Rxg2 {[%emt 0:01:18]} 26. Qd5 {[%emt 0:00:17]} Rg1+ {[%emt 0:00:14]} 27. Kxg1 {[%emt 0:00:09]} Nf3+ {[%emt 0:00:01]} 28. Qxf3 {[%emt 0:00:03]} Qxf3 {[%emt 0:00:02]} 29. Bf4 {[%emt 0:00:18]} Qxf4 {[%emt 0:00:08]} 30. Rc3 {[%emt 0:00:01]} Rg8+ {[%emt 0:00:05]} 31. Rg3 {[%emt 0:00:01]} Rxg3+ {[%emt 0:00:02]} 32. hxg3 {[%emt 0:00:02]} Qb4 {[%emt 0:00:07]} 33. Re8+ {[%emt 0:00:05]} Kd7 {[%emt 0:00:01]} 34. Rh8 {[%emt 0:00:02]} dxc5 {[%emt 0:00:04]} 35. Rxh7+ {[%emt 0:00:02]} Kc6 {[%emt 0:00:02]} 36. Rf7 {[%emt 0:00:02]} Qd4 {[%emt 0:00:04]} 0-1

[Event "European Women Rapid-ch 2023"]
[Site "Monaco"]
[Date "2024.01.14"]
[Round "6.14"]
[White "Zimina, Olga"]
[Black "Garcia Martin, Marta"]
[Result "0-1"]
[ECO "D02"]
[WhiteElo "2291"]
[BlackElo "2342"]
[Annotator "RC"]
[PlyCount "84"]
[EventDate "2023.12.19"]
[EventType "swiss"]
[EventCountry "MNC"]
[SourceTitle "playchess.com"]
[Source "ChessBase"]
[SourceQuality "1"]
[TimeControl "900+10"]

1. d4 {[%emt 0:02:01]} Nf6 {[%emt 0:00:04]} 2. Nf3 {[%emt 0:00:03]} c5 {[%emt 0:00:03]} 3. c3 {[%emt 0:00:01]} d5 {[%emt 0:01:33]} 4. dxc5 {[%emt 0:00:03]} e6 {[%emt 0:00:07]} 5. Be3 {[%emt 0:00:01]} a5 {[%emt 0:01:53]} 6. b4 {[%emt 0:00:06]} axb4 {[%emt 0:00:35]} 7. cxb4 {[%emt 0:00:02]} b6 {[%emt 0:00:01]} 8. Nbd2 {[%emt 0:02:21]} bxc5 {[%emt 0:01:58]} 9. bxc5 {[%emt 0:00:04]} Nc6 {[%emt 0:01:46]} 10. Nd4 {[%emt 0:02:02]} Bd7 {[%emt 0:00:38]} 11. N2b3 {[%emt 0:02:39]} e5 {[%emt 0:00:15]} 12. Nxc6 {[%emt 0:00:11]} Bxc6 {[%emt 0:00:01]} 13. Bg5 {[%emt 0:00:31]} h6 {[%emt 0:03:47]} 14. Bxf6 {[%emt 0:00:55]} Qxf6 {[%emt 0:00:01]} 15. e3 {[%emt 0:00:02]} Qg5 {[%emt 0:01:21]} 16. Qf3 {[%emt 0:01:53]} g6 {[%emt 0:02:08]} 17. h4 {[%emt 0:00:18]} Qe7 {[%emt 0:00:08]} 18. h5 {[%emt 0:00:33]} Bg7 {[%emt 0:00:01]} 19. hxg6 {[%emt 0:00:10]} fxg6 {[%emt 0:00:01]} 20. Qg3 {[%emt 0:00:09]} Qf6 {[%emt 0:00:43]} 21. Be2 {[%emt 0:00:06]} O-O {[%emt 0:00:16]} 22. O-O {[%emt 0:00:05]} Ra3 {[%emt 0:00:19]} 23. Bf3 {[%emt 0:00:57]} Qf7 {[%emt 0:00:32]} 24. Bg4 {[%emt 0:00:37]} h5 {[%emt 0:00:10]} 25. Be2 {[%emt 0:00:43]} Rfa8 {[%emt 0:00:33]} 26. Bd3 {[%emt 0:00:06]} e4 {[%emt 0:00:02]} 27. Be2 {[%emt 0:00:12]} Bxa1 {[%emt 0:00:25]} 28. Nxa1 {[%emt 0:00:15]} Rxa2 {[%emt 0:00:02]} 29. Bxh5 {[%emt 0:01:06]} Rxa1 {[%emt 0:00:01]} 30. Bxg6 {[%emt 0:00:06]} Rxf1+ {[%emt 0:00:08]} 31. Kxf1 {[%emt 0:00:02]} Qg7 {[%emt 0:00:30]} 32. Kg1 {[%emt 0:00:13]} Rf8 {[%emt 0:00:13]} 33. Qd6 {[%emt 0:00:21]} Qf6 {[%emt 0:00:02]} 34. Qg3 {[%emt 0:00:04]} Qg7 {[%emt 0:00:09]} 35. Qd6 {[%emt 0:00:02]} Rf6 {[%emt 0:00:06]} 36. Qb8+ {[%emt 0:00:05]} Qf8 {[%emt 0:00:02]} 37. Qg3 {[%emt 0:00:02]} Qg7 {[%emt 0:00:27]} 38. Qb8+ {[%emt 0:00:01]} Rf8 {[%emt 0:00:03]} 39. Qd6 {[%emt 0:00:03]} Qa1+ {[%emt 0:00:18]} 40. Kh2 {[%emt 0:00:03]} Qf6 {[%emt 0:00:11]} 41. Qg3 {[%emt 0:00:05]} Qg7 {[%emt 0:00:14]} 42. Kg1 {[%emt 0:00:13]} Be8 {[%emt 0:00:05]} 0-1

[Event "European Women Rapid-ch 2023"]
[Site "Monaco"]
[Date "2024.01.14"]
[Round "6.15"]
[White "Hoang, Thanh Trang"]
[Black "Zvereva, Marija"]
[Result "1-0"]
[ECO "A46"]
[WhiteElo "2382"]
[BlackElo "2049"]
[Annotator "RC"]
[PlyCount "55"]
[EventDate "2023.12.19"]
[EventType "swiss"]
[EventCountry "MNC"]
[SourceTitle "playchess.com"]
[Source "ChessBase"]
[SourceQuality "1"]
[TimeControl "900+10"]

1. d4 {[%emt 0:00:04]} Nf6 {[%emt 0:00:10]} 2. Nf3 {[%emt 0:00:06]} b5 {[%emt 0:00:11]} 3. Bf4 {[%emt 0:00:21]} e6 {[%emt 0:00:16]} 4. e3 {[%emt 0:00:08]} a6 {[%emt 0:00:15]} 5. Bd3 {[%emt 0:00:37]} c5 {[%emt 0:00:27]} 6. c3 {[%emt 0:00:22]} Bb7 {[%emt 0:00:21]} 7. Nbd2 {[%emt 0:00:09]} d5 {[%emt 0:02:10]} 8. O-O {[%emt 0:00:38]} Be7 {[%emt 0:00:38]} 9. dxc5 {[%emt 0:02:22]} Bxc5 {[%emt 0:00:09]} 10. Qc2 {[%emt 0:01:29]} O-O {[%emt 0:02:27]} 11. e4 {[%emt 0:00:19]} dxe4 {[%emt 0:02:17]} 12. Nxe4 {[%emt 0:00:09]} Nxe4 {[%emt 0:00:04]} 13. Bxe4 {[%emt 0:00:12]} Bxe4 {[%emt 0:00:02]} 14. Qxe4 {[%emt 0:00:04]} Nd7 {[%emt 0:00:03]} 15. Rad1 {[%emt 0:00:52]} Nf6 {[%emt 0:02:38]} 16. Qc2 {[%emt 0:01:48]} Qe7 {[%emt 0:02:02]} 17. b4 {[%emt 0:00:41]} Nh5 {[%emt 0:01:02]} 18. Be5 {[%emt 0:02:23]} f6 {[%emt 0:00:04]} 19. bxc5 {[%emt 0:00:18]} fxe5 {[%emt 0:00:02]} 20. Nxe5 {[%emt 0:00:02]} Nf4 {[%emt 0:00:15]} 21. Qe4 {[%emt 0:00:56]} Rac8 {[%emt 0:00:20]} 22. c6 {[%emt 0:00:10]} Qg5 {[%emt 0:01:00]} 23. g3 {[%emt 0:00:33]} Rf5 {[%emt 0:00:36]} 24. Nf3 {[%emt 0:01:05]} Qg4 {[%emt 0:00:17]} 25. Kh1 {[%emt 0:00:16]} Rcf8 {[%emt 0:00:17]} 26. c7 {[%emt 0:00:23]} Qh3 {[%emt 0:00:06]} 27. gxf4 {[%emt 0:00:07]} Rxf4 {[%emt 0:00:01]} 28. Qxf4 {[%emt 0:00:13]} 1-0